fUSD/lending_fUSD_20250113
["ID","MTS","AMOUNT","RATE_DAILY","PERIOD"]
[348781737,1736781066523,-3151.22,0.00011355,2]
[348781738,1736781066532,-724.24,0.00011355,2]
[348781739,1736781066542,-545.46,0.00011355,2]
[348781740,1736781066558,-298.7,0.00011355,2]
[348781741,1736781066568,-909.6,0.00011355,2]
[348781742,1736781066577,-500.0,0.00011355,2]
[348781743,1736781066587,-500.0,0.00011355,2]
[348781744,1736781066597,-789.83,0.00011355,2]
[348781745,1736781066606,-500.0,0.00011355,2]
[348781746,1736781066615,-755.01,0.00011355,2]
[348781747,1736781066625,-821.97,0.00011355,2]
[348781748,1736781066637,-500.0,0.00011355,2]
[348781749,1736781066647,-500.0,0.00011355,2]
[348781750,1736781066657,-1680.2,0.00011355,2]
[348781751,1736781066668,-547.08,0.00011355,2]
[348781752,1736781066677,-500.0,0.00011355,2]
[348781753,1736781066688,-500.0,0.00011355,2]
[348781754,1736781066697,-604.16,0.00011355,2]
[348781755,1736781066707,-734.92,0.00011355,2]
[348781756,1736781066719,-650.74,0.00011355,2]
[348781757,1736781066729,-500.0,0.00011355,2]
[348781758,1736781066738,-517.51,0.00011355,2]
[348781759,1736781066748,-3198.06,0.00011355,2]
[348781760,1736781066757,-500.0,0.00011355,2]
[348781761,1736781066767,-500.0,0.00011355,2]
[348781762,1736781066776,-931.27,0.00011355,2]
[348781763,1736781066785,-775.89,0.00011355,2]
[348781764,1736781066800,-500.0,0.00011355,2]
[348781765,1736781066810,-836.54,0.00011355,2]
[348781766,1736781066820,-500.0,0.00011355,2]
[348781767,1736781066829,-567.37,0.00011355,2]
[348781768,1736781066839,-500.0,0.00011355,2]
[348781769,1736781066848,-578.04,0.00011355,2]
[348781770,1736781066858,-500.0,0.00011355,2]
[348781771,1736781066867,-4315.13,0.00011355,2]
[348781772,1736781066877,-1882.24,0.00011355,2]
[348781773,1736781066886,-500.0,0.00011355,2]
[348781774,1736781066895,-808.8,0.00011355,2]
[348781775,1736781066904,-6573.2,0.00011355,2]
[348781776,1736781066914,-152.650578,0.00011355,2]
[348781777,1736781066923,-156.801254,0.00011355,2]
[348781778,1736781066933,-563.79,0.00011355,2]
[348781779,1736781067079,-908.18,0.00011355,2]
[348781780,1736781067089,-500.0,0.00011355,2]
[348781781,1736781067099,-3092.56,0.00011355,2]
[348781782,1736781067108,-450.92,0.00011355,2]
[348781783,1736781067118,-156.59921,0.00011355,2]
[348781784,1736781067128,-816.12,0.00011355,2]
[348781785,1736781067138,-500.0,0.00011355,2]
[348781786,1736781067148,-665.42,0.00011355,2]
[348781787,1736781067158,-500.0,0.00011355,2]
[348781788,1736781067167,-500.0,0.00011355,2]
[348781789,1736781067177,-1177.52,0.00011355,2]
[348781790,1736781067186,-156.28572,0.00011355,2]
[348781791,1736781067195,-3267.6,0.00011355,2]
[348781792,1736781067205,-500.0,0.00011355,2]
[348781793,1736781067215,-736.89,0.00011355,2]
[348781794,1736781067224,-500.0,0.00011355,2]
[348781795,1736781067233,-1040.63,0.00011355,2]
[348781796,1736781067243,-500.0,0.00011355,2]
[348781797,1736781067253,-158.12774,0.00011355,2]
[348781798,1736781067263,-2974.13,0.00011355,2]
[348781799,1736781067273,-857.7,0.00011355,2]
[348781800,1736781067283,-151.963653,0.00011355,2]
[348781801,1736781067292,-778.55,0.00011355,2]
[348781802,1736781067306,-500.0,0.00011355,2]
[348781803,1736781067317,-500.0,0.00011355,2]
[348781804,1736781067326,-160.742573,0.00011355,2]
[348781805,1736781067336,-500.0,0.00011355,2]
[348781806,1736781067346,-500.0,0.00011355,2]
[348781807,1736781067355,-500.0,0.00011355,2]
[348781808,1736781067365,-500.0,0.00011355,2]
[348781809,1736781067376,-500.0,0.00011355,2]
[348781810,1736781067386,-1393.48,0.00011355,2]
[348781811,1736781067395,-500.0,0.00011355,2]
[348781812,1736781067404,-4043.18,0.00011355,2]
[348781813,1736781067414,-500.0,0.00011355,2]
[348781814,1736781067423,-641.1,0.00011355,2]
[348781815,1736781067432,-159.65541,0.00011355,2]
[348781816,1736781067442,-406.37123333,0.00011355,2]
[348781817,1736781067452,-1063.02,0.00011355,2]
[348781818,1736781067462,-500.0,0.00011355,2]
[348781819,1736781067472,-500.0,0.00011355,2]
[348781820,1736781067482,-500.0,0.00011355,2]
[348781821,1736781067492,-500.0,0.00011355,2]
[348781822,1736781067501,-159.466887,0.00011355,2]
[348781823,1736781067511,-778.3,0.00011355,2]
[348781824,1736781067520,-500.0,0.00011355,2]
[348781825,1736781067530,-1307.83,0.00011355,2]
[348781826,1736781067540,-584.38,0.00011355,2]
[348781827,1736781067555,-155.696244,0.00011355,2]
[348781828,1736781067565,-500.0,0.00011355,2]
[348781829,1736781067574,-500.0,0.00011355,2]
[348781830,1736781067584,-1826.28,0.00011355,2]
[348781831,1736781067595,-1347.85,0.00011355,2]
[348781832,1736781067604,-1214.14,0.00011355,2]
[348781833,1736781067613,-155.907956,0.00011355,2]
[348781834,1736781067624,-500.0,0.00011355,2]
[348781835,1736781067634,-165.573314,0.00011355,2]
[348781836,1736781067644,-500.0,0.00011355,2]
[348781837,1736781067653,-111.76293128,0.00011355,2]
[348781838,1736781067666,-439.94706872,0.00011355,2]
[348781839,1736781067676,-723.25,0.00011355,2]
[348781840,1736781067686,-500.0,0.00011355,2]
[348781841,1736781067695,-500.0,0.00011355,2]
[348781842,1736781067704,-160.360957,0.00011355,2]
[348781843,1736781067713,-500.0,0.00011355,2]
[348781844,1736781067722,-157.165237,0.00011355,2]
[348781845,1736781067732,-500.0,0.00011355,2]
[348781846,1736781067741,-500.0,0.00011355,2]
[348781847,1736781067751,-1235.59805821,0.00011355,2]
[348781848,1736781067765,-287.49194179,0.00011355,2]
[348781849,1736781067775,-280.32818003,0.00011355,2]
[348781850,1736781067787,-806.91625,0.00011355,2]
[348781851,1736781067806,-528.90556997,0.00011355,2]
[348781852,1736781067815,-157.956216,0.00011355,2]
[348781853,1736781067825,-73.21538218,0.00011355,2]
[348781854,1736781067835,-82.33049882,0.00011355,2]
[348781855,1736781067844,-500.0,0.00011355,2]
[348781856,1736781067854,-383.14844047,0.00011355,2]
[348781857,1736781067866,-116.85155953,0.00011355,2]
[348781858,1736781067875,-500.0,0.00011356,2]
[348781859,1736781067884,-500.0,0.00011356,2]
[348781860,1736781067894,-500.0,0.00011356,7]
[348781861,1736781067903,-246.34988828,0.00011356,2]
[348781862,1736781067914,-253.65011172,0.00011356,2]
[348781863,1736781067924,-226.35323593,0.00011356,2]
[348781864,1736781067937,-273.64676407,0.00011356,2]
[348781865,1736781067947,-210.51569467,0.00011356,2]
[348781866,1736781067967,-500.0,9.985e-05,2]
[348781867,1736781067976,-289.48430533,0.00011356,2]
[348781868,1736781067986,-500.0,0.00011356,2]
[348781869,1736781067995,-500.0,0.00011356,2]
[348781870,1736781068004,-500.0,0.00011356,2]
[348781871,1736781068013,-500.0,0.00011356,2]
[348781872,1736781068023,-226.63,0.00011356,2]
[348781873,1736781068032,-500.0,0.00011356,2]
[348781874,1736781068043,-1740.25,0.00011356,2]
[348781875,1736781068055,-1204.96,0.00011356,2]
[348781876,1736781068066,-1337.41,0.00011356,2]
[348781877,1736781068075,-3320.96,0.00011356,2]
[348781878,1736781068084,-935.33,0.00011356,2]
[348781879,1736781068094,-1115.16,0.00011356,2]
[348781880,1736781068104,-838.19,0.00011356,2]
[348781881,1736781068114,-541.42,0.00011357,2]
[348781882,1736781068125,-567.18,0.00011357,2]
[348781883,1736781068136,-1780.09,0.00011357,2]
[348781884,1736781068146,-500.0,0.00011357,2]
[348781885,1736781068156,-1041.22,0.00011357,2]
[348781886,1736781068166,-1973.52,0.00011363,2]
[348781887,1736781068175,-6491.93,0.00011363,2]
[348781888,1736781068184,-930.54,0.00011363,2]
[348781889,1736781068194,-983.30010091,0.00011368,2]
[348781890,1736781068207,-382.50989909,0.00011368,2]
[348781891,1736781068217,-956.03,0.00011368,2]
[348781892,1736781068226,-902.73,0.00011368,2]
[348781893,1736781068236,-745.28,0.00011368,2]
[348781894,1736781068245,-500.0,0.00011368,2]
[348781895,1736781068255,-900.09,0.00011368,2]
[348781896,1736781068265,-1047.7,0.00011368,2]
[348781897,1736781068275,-694.11,0.00011368,2]
[348781898,1736781068285,-1261.35,0.00011368,2]
[348781899,1736781068296,-1046.61,0.00011368,2]
[348781900,1736781068307,-213.96529045,0.00011428,2]
[348781901,1736781068316,-2106.03562939,0.00011428,2]
[348781902,1736781068325,-54.59222664,0.00011452,2]
[348781903,1736781068577,-500.0,9.985e-05,2]
[348781904,1736781068587,-351.66209195,0.00010259,2]
[348781905,1736781068599,-148.33790805,0.00010259,2]
[348781906,1736781068608,-500.0,0.00011082,2]
[348781907,1736781068618,-500.0,0.00011355,2]
[348781908,1736781068629,-346.25086451,0.00011452,2]
[348781909,1736781068639,-1200.0,0.00011506,2]
[348781910,1736781068648,-800.0,0.00011506,2]
[348781911,1736781068657,-2751.0,0.00011507,2]
[348781912,1736781068666,-400.84309115,0.00011555,2]
[348781913,1736781068675,-5172.96558812,0.00011589,2]
[348781914,1736781068702,-500.0,0.00011506,2]
[348781915,1736781068714,-1199.68651401,0.00011589,2]
[348781916,1736781068725,-331.07,0.00011589,2]
[348781917,1736781068810,-947.72946,0.00011589,2]
[348781918,1736781068822,-267.7492,0.00011589,2]
[348781919,1736781068834,-1730.84596,0.00011589,2]
[348781920,1736781068895,-29216.95327787,0.00011589,2]
[348781921,1736781068904,-891.7,0.00011619,2]
[348781922,1736781068914,-2113.26,0.00011628,2]
[348781923,1736781068923,-1620.44,0.00011628,2]
[348781924,1736781068933,-1145.76,0.00011628,2]
[348781925,1736781068943,-2273.33,0.00011628,2]
[348781926,1736781068952,-714.16,0.00011628,2]
[348781927,1736781068962,-500.0,0.00011628,2]
[348781928,1736781068972,-1574.97,0.00011628,2]
[348781929,1736781068982,-812.01,0.00011628,2]
[348781930,1736781068993,-500.0,0.00011628,2]
[348781931,1736781069002,-500.0,0.00011628,2]
[348781932,1736781069012,-589.9,0.00011629,2]
[348781933,1736781069021,-177.27,0.00011629,2]
[348781934,1736781069031,-500.0,0.00011629,2]
[348781935,1736781069040,-597.62,0.00011629,2]
[348781936,1736781069051,-1284.02,0.00011629,2]
[348781937,1736781069061,-1609.2,0.00011629,2]
[348781938,1736781069070,-988.31,0.00011629,2]
[348781939,1736781069080,-730.11,0.00011629,2]
[348781940,1736781069088,-2036.03,0.00011629,2]
[348781941,1736781069097,-500.0,0.00011629,2]
[348781942,1736781069106,-500.0,0.00011629,2]
[348781943,1736781069115,-500.0,0.00011629,2]
[348781944,1736781069124,-2273.86,0.00011629,2]
[348781945,1736781069133,-805.23,0.00011629,2]
[348781946,1736781069142,-553.16,0.00011629,2]
[348781947,1736781069151,-500.0,0.00011629,2]
[348781948,1736781069161,-500.0,0.00011629,2]
[348781949,1736781069170,-500.0,0.00011629,2]
[348781950,1736781069180,-833.42,0.00011629,2]
[348781951,1736781069190,-568.96,0.00011629,2]
[348781952,1736781069200,-646.98,0.00011629,2]
[348781953,1736781069210,-500.0,0.00011629,2]
[348781954,1736781069219,-500.0,0.00011629,2]
[348781955,1736781069229,-500.0,0.00011629,2]
[348781956,1736781069238,-500.0,0.00011629,2]
[348781957,1736781069247,-1246.49,0.00011629,2]
[348781958,1736781069391,-500.0,0.00011629,2]
[348781959,1736781069403,-500.0,0.00011629,2]
[348781960,1736781069412,-500.0,0.00011629,2]
[348781961,1736781069422,-500.0,0.00011629,2]
[348781962,1736781069432,-1200.84,0.00011629,2]
[348781963,1736781069441,-696.86,0.00011629,2]
[348781964,1736781069450,-500.0,0.00011629,2]
[348781965,1736781069459,-523.34,0.00011629,2]
[348781966,1736781069468,-500.0,0.00011629,2]
[348781967,1736781069478,-732.18,0.00011629,2]
[348781968,1736781069488,-950.32,0.00011629,2]
[348781969,1736781069497,-687.35,0.00011629,2]
[348781970,1736781069507,-500.0,0.00011629,2]
[348781971,1736781069516,-673.27,0.00011629,2]
[348781972,1736781069526,-773.47,0.00011629,2]
[348781973,1736781069536,-774.98,0.00011629,2]
[348781974,1736781069550,-809.49,0.00011629,2]
[348781975,1736781069560,-2655.33,0.00011629,2]
[348781976,1736781069570,-740.63,0.00011629,2]
[348781977,1736781069580,-928.3,0.00011629,2]
[348781978,1736781069593,-1536.22,0.00011629,2]
[348781979,1736781069603,-500.0,0.00011629,2]
[348781980,1736781069613,-500.0,0.00011629,2]
[348781981,1736781069625,-532.08,0.00011629,2]
[348781982,1736781069635,-1882.34,0.00011629,2]
[348781983,1736781069645,-773.45,0.00011629,2]
[348781984,1736781069654,-500.0,0.00011629,2]
[348781985,1736781069664,-318.27064044,0.00011629,2]
[348781986,1736781069674,-534.94704229,0.00011629,2]
[348781987,1736781069683,-500.0,0.00011629,2]
[348781988,1736781069693,-666.59,0.00011629,2]
[348781989,1736781069702,-3151.22,0.00011629,2]
[348781990,1736781069714,-724.24,0.00011629,2]
[348781991,1736781069724,-545.46,0.00011629,2]
[348781992,1736781069734,-909.6,0.00011629,2]
[348781993,1736781069743,-500.0,0.00011629,2]
[348781994,1736781069755,-500.0,0.00011629,2]
[348781995,1736781069764,-789.83,0.00011629,2]
[348781996,1736781069774,-500.0,0.00011629,2]
[348781997,1736781069784,-755.01,0.00011629,2]
[348781998,1736781069793,-821.97,0.00011629,2]
[348781999,1736781069806,-500.0,0.00011629,2]
[348782000,1736781069815,-500.0,0.00011629,2]
[348782001,1736781069825,-1680.2,0.00011629,2]
[348782002,1736781069834,-547.08,0.00011629,2]
[348782003,1736781069843,-500.0,0.00011629,2]
[348782004,1736781069853,-500.0,0.00011629,2]
[348782005,1736781069863,-734.92,0.00011629,2]
[348782006,1736781069872,-650.74,0.00011629,2]
[348782007,1736781069882,-336.38212371,0.00011629,2]
[348782008,1736781069892,-517.51,0.00011629,2]
[348782009,1736781069901,-3198.06,0.00011629,2]
[348782010,1736781069910,-500.0,0.00011629,2]
[348782011,1736781069919,-500.0,0.00011629,2]
[348782012,1736781069928,-931.27,0.00011629,2]
[348782013,1736781069938,-775.89,0.00011629,2]
[348782014,1736781069948,-500.0,0.00011629,2]
[348782015,1736781069959,-836.54,0.00011629,2]
[348782016,1736781069969,-500.0,0.00011629,2]
[348782017,1736781069980,-567.37,0.00011629,2]
[348782018,1736781069989,-500.0,0.00011629,2]
[348782019,1736781070000,-4315.13,0.00011629,2]
[348782020,1736781070010,-1882.24,0.00011629,2]
[348782021,1736781070020,-500.0,0.00011629,2]
[348782022,1736781070031,-808.8,0.00011629,2]
[348782023,1736781070041,-6573.2,0.00011629,2]
[348782024,1736781070054,-152.650578,0.00011629,2]
[348782025,1736781070063,-563.79,0.00011629,2]
[348782026,1736781070072,-908.18,0.00011629,2]
[348782027,1736781070082,-250.59012825,0.00011629,2]
[348782028,1736781070091,-3092.56,0.00011629,2]
[348782029,1736781070102,-816.12,0.00011629,2]
[348782030,1736781070111,-665.42,0.00011629,2]
[348782031,1736781070121,-500.0,0.00011629,2]
[348782032,1736781070131,-500.0,0.00011629,2]
[348782033,1736781070140,-500.0,0.00011629,2]
[348782034,1736781070150,-1177.52,0.00011629,2]
[348782035,1736781070160,-156.28572,0.00011629,2]
[348782036,1736781070170,-3267.6,0.00011629,2]
[348782037,1736781070180,-500.0,0.00011629,2]
[348782038,1736781070190,-736.89,0.00011629,2]
[348782039,1736781070200,-500.0,0.00011629,2]
[348782040,1736781070209,-1040.63,0.00011629,2]
[348782041,1736781070219,-500.0,0.00011629,2]
[348782042,1736781070228,-158.12774,0.00011629,2]
[348782043,1736781070238,-2974.13,0.00011629,2]
[348782044,1736781070247,-857.7,0.00011629,2]
[348782045,1736781070256,-151.963653,0.00011629,2]
[348782046,1736781070266,-778.55,0.00011629,2]
[348782047,1736781070275,-500.0,0.00011629,2]
[348782048,1736781070286,-500.0,0.00011629,2]
[348782049,1736781070296,-160.742573,0.00011629,2]
[348782050,1736781070309,-500.0,0.00011629,2]
[348782051,1736781070320,-500.0,0.00011629,2]
[348782052,1736781070330,-500.0,0.00011629,2]
[348782053,1736781070340,-152.289649,0.00011629,2]
[348782054,1736781070350,-500.0,0.00011629,2]
[348782055,1736781070360,-1393.48,0.00011629,2]
[348782056,1736781070370,-500.0,0.00011629,2]
[348782057,1736781070380,-4043.18,0.00011629,2]
[348782058,1736781070389,-500.0,0.00011629,2]
[348782059,1736781070400,-641.1,0.00011629,2]
[348782060,1736781070410,-159.65541,0.00011629,2]
[348782061,1736781070419,-155.000621,0.00011629,2]
[348782062,1736781070430,-1063.02,0.00011629,2]
[348782063,1736781070439,-301.37558608,0.00011629,2]
[348782064,1736781070449,-500.0,0.00011629,2]
[348782065,1736781070459,-500.0,0.00011629,2]
[348782066,1736781070468,-500.0,0.00011629,2]
[348782067,1736781070478,-159.466887,0.00011629,2]
[348782068,1736781070488,-500.0,0.00011629,2]
[348782069,1736781070498,-778.3,0.00011629,2]
[348782070,1736781070508,-1307.83,0.00011629,2]
[348782071,1736781070517,-584.38,0.00011629,2]
[348782072,1736781070527,-155.696244,0.00011629,2]
[348782073,1736781070538,-500.0,0.00011629,2]
[348782074,1736781070552,-256.27633734,0.00011629,2]
[348782075,1736781070564,-1826.28,0.00011629,2]
[348782076,1736781070574,-1347.85,0.00011629,2]
[348782077,1736781070584,-1214.14,0.00011629,2]
[348782078,1736781070594,-155.907956,0.00011629,2]
[348782079,1736781070605,-500.0,0.00011629,2]
[348782080,1736781070614,-500.0,0.00011629,2]
[348782081,1736781070628,-165.573314,0.00011629,2]
[348782082,1736781070638,-500.0,0.00011629,2]
[348782083,1736781070649,-551.71,0.00011629,2]
[348782084,1736781070660,-723.25,0.00011629,2]
[348782085,1736781070670,-500.0,0.00011629,2]
[348782086,1736781070680,-500.0,0.00011629,2]
[348782087,1736781070689,-160.360957,0.00011629,2]
[348782088,1736781070700,-500.0,0.00011629,2]
[348782089,1736781070710,-157.165237,0.00011629,2]
[348782090,1736781070720,-500.0,0.00011629,2]
[348782091,1736781070729,-500.0,0.00011629,2]
[348782092,1736781070740,-1523.09,0.00011629,2]
[348782093,1736781070750,-157.956216,0.00011629,2]
[348782094,1736781070760,-1616.15,0.00011629,2]
[348782095,1736781070769,-155.545881,0.00011629,2]
[348782096,1736781070779,-500.0,0.00011629,2]
[348782097,1736781070789,-500.0,0.00011629,2]
[348782098,1736781070802,-248.85,0.0001163,2]
[348782099,1736781070811,-500.0,0.0001163,2]
[348782100,1736781070821,-500.0,0.0001163,7]
[348782101,1736781070830,-498.30866746,0.0001163,2]
[348782102,1736781070840,-500.0,0.0001163,2]
[348782103,1736781070849,-500.0,0.0001163,2]
[348782104,1736781070859,-347.79,0.0001163,2]
[348782105,1736781070869,-500.0,0.0001163,2]
[348782106,1736781070881,-500.0,0.0001163,2]
[348782107,1736781070891,-599.02,0.0001163,2]
[348782108,1736781070901,-1740.25,0.0001163,2]
[348782109,1736781070911,-1204.96,0.0001163,2]
[348782110,1736781070920,-1337.41,0.0001163,2]
[348782111,1736781070930,-3320.96,0.0001163,2]
[348782112,1736781070940,-935.33,0.0001163,2]
[348782113,1736781070950,-1115.16,0.0001163,2]
[348782114,1736781070961,-541.42,0.00011631,2]
[348782115,1736781070971,-567.18,0.00011631,2]
[348782116,1736781070980,-1780.09,0.00011631,2]
[348782117,1736781070990,-500.0,0.00011631,2]
[348782118,1736781071000,-1041.22,0.00011631,2]
[348782119,1736781071010,-1973.52,0.00011637,2]
[348782120,1736781071020,-6491.93,0.00011637,2]
[348782121,1736781071031,-930.54,0.00011637,2]
[348782122,1736781071042,-1365.81,0.00011642,2]
[348782123,1736781071054,-956.03,0.00011642,2]
[348782124,1736781071064,-902.73,0.00011642,2]
[348782125,1736781071074,-745.28,0.00011642,2]
[348782126,1736781071083,-500.0,0.00011642,2]
[348782127,1736781071093,-900.09,0.00011642,2]
[348782128,1736781071103,-1047.7,0.00011642,2]
[348782129,1736781071112,-694.11,0.00011642,2]
[348782130,1736781071122,-1261.35,0.00011642,2]
[348782131,1736781071132,-1046.61,0.00011642,2]
[348782132,1736781071141,-400.84309115,0.00011659,2]
[348782133,1736781071150,-162.08,0.0001168,2]
[348782134,1736781071160,-213.96529045,0.00011685,2]
[348782135,1736781071170,-2106.03562939,0.00011686,2]
[348782136,1736781071180,-400.84309115,0.00011762,2]
[348782137,1736781071190,-429.82131162,0.00011797,2]
[348782138,1736781071200,-400.84309115,0.00011866,2]
[348782139,1736781071210,-2113.26,0.00011902,2]
[348782140,1736781071220,-1620.44,0.00011902,2]
[348782141,1736781071230,-1145.76,0.00011902,2]
[348782142,1736781071239,-2273.33,0.00011902,2]
[348782143,1736781071249,-714.16,0.00011902,2]
[348782144,1736781071258,-500.0,0.00011902,2]
[348782145,1736781071268,-1574.97,0.00011902,2]
[348782146,1736781071278,-812.01,0.00011902,2]
[348782147,1736781071288,-500.0,0.00011902,2]
[348782148,1736781071297,-500.0,0.00011902,2]
[348782149,1736781071308,-589.9,0.00011903,2]
[348782150,1736781071318,-500.0,0.00011903,2]
[348782151,1736781071327,-597.62,0.00011903,2]
[348782152,1736781071337,-1284.02,0.00011903,2]
[348782153,1736781071346,-1609.2,0.00011903,2]
[348782154,1736781071355,-988.31,0.00011903,2]
[348782155,1736781071365,-730.11,0.00011903,2]
[348782156,1736781071374,-2036.03,0.00011903,2]
[348782157,1736781071384,-500.0,0.00011903,2]
[348782158,1736781071393,-500.0,0.00011903,2]
[348782159,1736781071402,-500.0,0.00011903,2]
[348782160,1736781071412,-2273.86,0.00011903,2]
[348782161,1736781071421,-805.23,0.00011903,2]
[348782162,1736781071430,-553.16,0.00011903,2]
[348782163,1736781071439,-500.0,0.00011903,2]
[348782164,1736781071449,-500.0,0.00011903,2]
[348782165,1736781071458,-500.0,0.00011903,2]
[348782166,1736781071468,-833.42,0.00011903,2]
[348782167,1736781071478,-568.96,0.00011903,2]
[348782168,1736781071488,-646.98,0.00011903,2]
[348782169,1736781071498,-500.0,0.00011903,2]
[348782170,1736781071508,-500.0,0.00011903,2]
[348782171,1736781071518,-500.0,0.00011903,2]
[348782172,1736781071528,-500.0,0.00011903,2]
[348782173,1736781071537,-1246.49,0.00011903,2]
[348782174,1736781071551,-500.0,0.00011903,2]
[348782175,1736781071686,-500.0,0.00011903,2]
[348782176,1736781071696,-500.0,0.00011903,2]
[348782177,1736781071706,-500.0,0.00011903,2]
[348782178,1736781071716,-1200.84,0.00011903,2]
[348782179,1736781071726,-696.86,0.00011903,2]
[348782180,1736781071737,-500.0,0.00011903,2]
[348782181,1736781071747,-523.34,0.00011903,2]
[348782182,1736781071756,-500.0,0.00011903,2]
[348782183,1736781071767,-732.18,0.00011903,2]
[348782184,1736781071777,-950.32,0.00011903,2]
[348782185,1736781071787,-687.35,0.00011903,2]
[348782186,1736781071796,-500.0,0.00011903,2]
[348782187,1736781071808,-673.27,0.00011903,2]
[348782188,1736781071818,-773.47,0.00011903,2]
[348782189,1736781071828,-774.98,0.00011903,2]
[348782190,1736781071838,-809.49,0.00011903,2]
[348782191,1736781071849,-2655.33,0.00011903,2]
[348782192,1736781071859,-740.63,0.00011903,2]
[348782193,1736781071870,-928.3,0.00011903,2]
[348782194,1736781071879,-1536.22,0.00011903,2]
[348782195,1736781071889,-500.0,0.00011903,2]
[348782196,1736781071899,-500.0,0.00011903,2]
[348782197,1736781071910,-532.08,0.00011903,2]
[348782198,1736781071920,-1882.34,0.00011903,2]
[348782199,1736781071930,-773.45,0.00011903,2]
[348782200,1736781071939,-500.0,0.00011903,2]
[348782201,1736781071948,-500.0,0.00011903,2]
[348782202,1736781071958,-666.59,0.00011903,2]
[348782203,1736781071967,-3151.22,0.00011903,2]
[348782204,1736781071976,-724.24,0.00011903,2]
[348782205,1736781071986,-545.46,0.00011903,2]
[348782206,1736781071996,-909.6,0.00011903,2]
[348782207,1736781072006,-500.0,0.00011903,2]
[348782208,1736781072016,-500.0,0.00011903,2]
[348782209,1736781072026,-789.83,0.00011903,2]
[348782210,1736781072036,-500.0,0.00011903,2]
[348782211,1736781072046,-755.01,0.00011903,2]
[348782212,1736781072057,-821.97,0.00011903,2]
[348782213,1736781072068,-500.0,0.00011903,2]
[348782214,1736781072078,-500.0,0.00011903,2]
[348782215,1736781072087,-1680.2,0.00011903,2]
[348782216,1736781072097,-547.08,0.00011903,2]
[348782217,1736781072106,-500.0,0.00011903,2]
[348782218,1736781072116,-216.6689963,0.00011903,2]
[348782219,1736781072127,-734.92,0.00011903,2]
[348782220,1736781072136,-650.74,0.00011903,2]
[348782221,1736781072146,-517.51,0.00011903,2]
[348782222,1736781072156,-3198.06,0.00011903,2]
[348782223,1736781072166,-500.0,0.00011903,2]
[348782224,1736781072176,-500.0,0.00011903,2]
[348782225,1736781072186,-931.27,0.00011903,2]
[348782226,1736781072195,-775.89,0.00011903,2]
[348782227,1736781072205,-836.54,0.00011903,2]
[348782228,1736781072216,-500.0,0.00011903,2]
[348782229,1736781072227,-500.0,0.00011903,2]
[348782230,1736781072237,-567.37,0.00011903,2]
[348782231,1736781072247,-500.0,0.00011903,2]
[348782232,1736781072256,-4315.13,0.00011903,2]
[348782233,1736781072266,-1882.24,0.00011903,2]
[348782234,1736781072275,-252.09231208,0.00011903,2]
[348782235,1736781072285,-808.8,0.00011903,2]
[348782236,1736781072295,-6573.2,0.00011903,2]